bitfinex/quotes_BTCUSD_20251231
["timestamp","ask_amount","ask_price","bid_price","bid_amount"]
[1767207945709,0.0245392,87827.0,87813.0,0.01]
[1767207945877,0.10397223,87826.0,87813.0,0.01]
[1767207947721,0.12917604,87826.0,87813.0,0.01]
[1767207947927,0.10397223,87826.0,87813.0,0.01]
[1767207951454,0.10397223,87826.0,87813.0,0.02144]
[1767207953671,0.01138627,87825.0,87813.0,0.017366]
[1767207953867,0.10706948,87821.0,87813.0,0.017366]
[1767207954067,0.10706948,87819.0,87813.0,0.005926]
[1767207954269,0.23915876,87828.0,87813.0,0.005926]
[1767207954270,0.10706948,87817.0,87813.0,0.005926]
[1767207955261,0.10706948,87817.0,87799.0,0.10855109]
[1767207955262,0.10706948,87817.0,87809.0,0.01144]
[1767207959842,0.10652048,87817.0,87809.0,0.01144]
[1767207960336,0.10706948,87827.0,87809.0,0.11999109]
[1767207960509,0.01064876,87826.0,87809.0,0.11999109]
[1767207960704,0.01064876,87825.0,87809.0,0.11999109]
[1767207960909,0.01064876,87824.0,87809.0,0.11999109]
[1767207961107,0.01064876,87823.0,87809.0,0.11999109]
[1767207961319,0.10706948,87826.0,87809.0,0.11999109]
[1767207961508,0.01064892,87825.0,87809.0,0.11999109]
[1767207961721,0.01064892,87824.0,87809.0,0.11999109]
[1767207961869,0.10706948,87826.0,87809.0,0.11999109]
[1767207962068,0.01064893,87825.0,87809.0,0.11999109]
[1767207962290,0.10706948,87826.0,87809.0,0.11999109]
[1767207962291,0.01064893,87824.0,87809.0,0.11999109]
[1767207962490,0.10706948,87826.0,87809.0,0.11999109]
[1767207962723,0.01064908,87825.0,87809.0,0.11999109]
[1767207962916,0.01064908,87824.0,87809.0,0.11999109]
[1767207963135,0.10706948,87826.0,87809.0,0.11999109]
[1767207963337,0.01064934,87825.0,87809.0,0.11999109]
[1767207963659,0.01064934,87824.0,87809.0,0.11999109]
[1767207963856,0.11892043,87826.0,87809.0,0.11999109]
[1767207964055,0.01064927,87825.0,87809.0,0.11999109]
[1767207964258,0.01064927,87824.0,87809.0,0.11999109]
[1767207964404,0.01410097,87823.0,87809.0,0.11999109]
[1767207967512,0.01410097,87823.0,87797.0,0.0001798]
[1767207967708,0.01144,87828.0,87797.0,0.0001798]
[1767207967709,0.10706948,87806.0,87797.0,0.0001798]
[1767207967869,0.10706948,87806.0,87797.0,0.0116198]
[1767207968074,0.10706948,87806.0,87797.0,0.0001798]
[1767207968275,0.10706948,87806.0,87798.0,0.01144]
[1767207968479,0.05199612,87805.0,87798.0,0.01144]
[1767207968790,0.05199612,87805.0,87798.0,0.01179364]
[1767207968991,0.10706948,87806.0,87798.0,0.01179364]
[1767207970408,0.11845744,87812.0,87798.0,0.01179364]
[1767207970628,0.11771479,87811.0,87798.0,0.01179364]
[1767207970829,0.01064531,87810.0,87798.0,0.01179364]
[1767207971053,0.10706948,87811.0,87798.0,0.01179364]
[1767207971252,0.06299846,87810.0,87798.0,0.01179364]
[1767207971451,0.05235457,87810.0,87798.0,0.01179364]
[1767207972050,0.10706948,87811.0,87798.0,0.01179364]
[1767207972268,0.01064373,87810.0,87798.0,0.01179364]
[1767207972572,0.10706948,87811.0,87798.0,0.01179364]
[1767207972717,0.01064496,87810.0,87798.0,0.01179364]
[1767207972919,0.10706948,87811.0,87798.0,0.01179364]
[1767207973138,0.01064497,87810.0,87798.0,0.01179364]
[1767207973346,0.10706948,87811.0,87798.0,0.01179364]
[1767207973599,0.01064485,87810.0,87798.0,0.01179364]
[1767207973802,0.10706948,87811.0,87798.0,0.01179364]
[1767207973981,0.01064485,87810.0,87798.0,0.01179364]
[1767207974457,0.15942426,87811.0,87798.0,0.01179364]
[1767207974656,0.01064382,87810.0,87798.0,0.01179364]
[1767207974850,0.15942426,87811.0,87798.0,0.01179364]
[1767207975061,0.01064394,87810.0,87798.0,0.01179364]
[1767207975318,0.15942426,87811.0,87798.0,0.01179364]
[1767207975657,0.01064361,87810.0,87798.0,0.01179364]
[1767207975857,0.15942426,87811.0,87798.0,0.01179364]
[1767207975993,0.01064355,87810.0,87798.0,0.01179364]
[1767207976201,0.10706948,87811.0,87798.0,0.01179364]
[1767207976202,0.10706948,87811.0,87798.0,0.01220344]
[1767207981991,0.11845757,87811.0,87798.0,0.01220344]
[1767207982190,0.10706948,87811.0,87798.0,0.01220344]
[1767207984061,0.1594242,87811.0,87798.0,0.01220344]
[1767207985064,0.11264507,87810.0,87798.0,0.01220344]
[1767207986652,0.11264507,87815.0,87798.0,0.01220344]
[1767207986985,0.12328719,87814.0,87798.0,0.01220344]
[1767207987191,0.08020761,87813.0,87798.0,0.01220344]
[1767207987391,0.01064212,87812.0,87798.0,0.01220344]
[1767207988382,0.01064212,87811.0,87798.0,0.01220344]
[1767207988728,0.11264507,87814.0,87798.0,0.01220344]
[1767207988897,0.01063813,87813.0,87798.0,0.00076344]
[1767207989101,0.1232832,87812.0,87798.0,0.00076344]
[1767207989264,0.01063813,87811.0,87798.0,0.00076344]
[1767207990924,0.02827618,87810.0,87798.0,0.00076344]
[1767207992012,0.14092125,87810.0,87798.0,0.00076344]
[1767207993266,0.01064258,87809.0,87798.0,0.00076344]
[1767207993446,0.14092125,87810.0,87798.0,0.00076344]
[1767207993647,0.01064258,87809.0,87798.0,0.00076344]
[1767207993850,0.14092125,87810.0,87798.0,0.00076344]
[1767207994048,0.01064258,87809.0,87798.0,0.00076344]
[1767207994250,0.14092125,87810.0,87798.0,0.00076344]
[1767207994422,0.01064472,87809.0,87800.0,0.41314748]
[1767207994626,0.11264507,87810.0,87800.0,0.41314748]
[1767207994943,0.01064473,87809.0,87800.0,0.41314748]
[1767207995283,0.01064733,87808.0,87800.0,0.41355728]
[1767207995484,0.11264507,87810.0,87800.0,0.41355728]
[1767207995666,0.01064729,87809.0,87800.0,0.41355728]
[1767207995866,0.01064729,87808.0,87800.0,0.41355728]
[1767207996064,0.01064694,87807.0,87800.0,0.41355728]
[1767207996333,0.01064694,87806.0,87800.0,0.0004098]
[1767207996484,0.01064694,87806.0,87791.0,0.116874]
[1767207996485,0.11264507,87799.0,87791.0,0.0001454]
[1767207996826,0.11264507,87799.0,87789.0,0.01144]
[1767207997040,0.11264507,87799.0,87789.0,0.0114803]
[1767207997180,0.01065379,87798.0,87789.0,0.0114803]
[1767207997379,0.01065365,87797.0,87789.0,0.0114803]
[1767207997567,0.05364462,87797.0,87789.0,0.0114803]
[1767207998439,0.11264507,87799.0,87789.0,0.0114803]
[1767207998615,0.01065136,87798.0,87789.0,0.0114803]
[1767207998818,0.07977142,87808.0,87789.0,0.0114803]
[1767207998819,0.12329643,87797.0,87789.0,0.0114803]
[1767207999004,0.11264507,87797.0,87789.0,0.0114803]
[1767208000551,0.11264507,87807.0,87797.0,0.00055]
[1767208000772,0.11264507,87805.0,87789.0,0.0114803]
[1767208000999,0.06788956,87804.0,87790.0,0.41314748]
[1767208001117,0.01064814,87803.0,87790.0,0.41314748]
[1767208001341,0.11264507,87811.0,87793.0,0.41314748]
[1767208001540,0.02208608,87810.0,87803.0,0.00055]
[1767208001743,0.01064608,87809.0,87793.0,0.1167286]
[1767208002010,0.01144,87810.0,87793.0,0.1167286]
[1767208002011,0.01064608,87808.0,87793.0,0.1167286]
[1767208002149,0.01064608,87807.0,87793.0,0.1167286]
[1767208002356,0.01009608,87806.0,87798.0,0.1167286]
[1767208002651,0.0001454,87813.0,87800.0,0.1167286]
[1767208002800,0.0001454,87813.0,87800.0,0.52987608]
[1767208004622,0.0001454,87813.0,87803.0,0.41314748]
[1767208004836,0.0001454,87813.0,87804.0,0.1167286]
[1767208016026,0.000549,87804.0,87801.0,0.11434719]
[1767208016426,0.0001454,87813.0,87801.0,0.11434719]
[1767208020780,0.01127659,87813.0,87801.0,0.11434719]
[1767208022013,0.0001454,87813.0,87803.0,0.41314748]
[1767208023932,0.0001454,87813.0,87804.0,0.11434719]
[1767208026700,0.0001454,87813.0,87803.0,0.41314748]
[1767208026905,0.0001454,87813.0,87800.0,0.52749467]
[1767208027119,0.0001454,87813.0,87800.0,0.11434719]
[1767208027277,0.01127659,87813.0,87800.0,0.52749467]
[1767208029640,0.01127659,87813.0,87803.0,0.41314748]
[1767208029785,0.0001454,87813.0,87803.0,0.41314748]
[1767208035433,0.0001454,87813.0,87804.0,0.11434719]
[1767208037546,0.01144,87827.0,87804.0,0.11434719]
[1767208037795,0.01064822,87826.0,87817.0,0.41314748]
[1767208037986,0.01064822,87825.0,87816.0,0.01144]
[1767208038242,0.02468561,87831.0,87816.0,0.01144]
[1767208038243,0.11116653,87829.0,87816.0,0.01144]
[1767208038435,0.01064735,87828.0,87819.0,0.41314748]
[1767208038640,0.01064735,87827.0,87819.0,0.41314748]
[1767208038810,0.11116653,87829.0,87819.0,0.41314748]
[1767208038811,0.01064735,87826.0,87819.0,0.41314748]
[1767208039004,0.11116653,87829.0,87819.0,0.41314748]
[1767208039168,0.01064816,87828.0,87816.0,0.42458748]
[1767208039374,0.01064816,87827.0,87819.0,0.41314748]
[1767208039576,0.11116653,87829.0,87817.0,0.41314748]
[1767208039830,0.01064566,87828.0,87819.0,0.41314748]
[1767208039990,0.01064566,87827.0,87819.0,0.41314748]
[1767208040201,0.11116653,87829.0,87817.0,0.41314748]
[1767208040407,0.01064374,87828.0,87819.0,0.41314748]
[1767208040604,0.01064374,87827.0,87816.0,0.01144]
[1767208040802,0.11116653,87829.0,87817.0,0.41314748]
[1767208041006,0.01064375,87828.0,87819.0,0.41314748]
[1767208041234,0.11116653,87829.0,87819.0,0.41314748]
[1767208041523,0.0106422,87828.0,87819.0,0.41314748]
[1767208041722,0.11116653,87829.0,87819.0,0.41314748]
[1767208041979,0.01064221,87828.0,87819.0,0.41314748]
[1767208042229,0.11116653,87829.0,87819.0,0.41314748]
[1767208042465,0.01064088,87828.0,87819.0,0.41314748]
[1767208042665,0.11116653,87829.0,87819.0,0.41314748]
[1767208042868,0.01064117,87828.0,87819.0,0.41314748]
[1767208043066,0.11116653,87829.0,87819.0,0.41314748]
[1767208044586,0.0001454,87831.0,87820.0,0.11111031]
[1767208044932,0.12746398,87830.0,87819.0,0.41314748]
[1767208045055,0.11682452,87830.0,87819.0,0.41314748]
[1767208045250,0.11682452,87830.0,87816.0,0.01144]
[1767208045452,0.11682452,87830.0,87820.0,0.41314748]
[1767208049462,0.0001454,87831.0,87820.0,0.41314748]
[1767208049678,0.01063668,87830.0,87820.0,0.41314748]
[1767208049890,0.0001454,87831.0,87820.0,0.41314748]
[1767208050082,0.01063668,87830.0,87820.0,0.41314748]
[1767208050245,0.0001454,87831.0,87820.0,0.41314748]
[1767208050457,0.01063649,87830.0,87820.0,0.41314748]
[1767208050665,0.0001454,87831.0,87820.0,0.41314748]
[1767208050868,0.01063649,87830.0,87820.0,0.41314748]
[1767208051068,0.0001454,87831.0,87820.0,0.41314748]
[1767208051253,0.01063609,87830.0,87820.0,0.41314748]
[1767208051627,0.0001454,87831.0,87820.0,0.41314748]
[1767208052208,0.01063583,87830.0,87820.0,0.41314748]
[1767208052370,0.0001454,87831.0,87820.0,0.41314748]
[1767208052551,0.01063584,87830.0,87820.0,0.41287628]
[1767208052755,0.0001454,87831.0,87820.0,0.41287628]
[1767208053109,0.01063588,87830.0,87820.0,0.41287628]
[1767208053316,0.0001454,87831.0,87820.0,0.41287628]
[1767208053521,0.12746077,87830.0,87816.0,0.01144]
[1767208053702,0.11682452,87830.0,87816.0,0.01144]
[1767208058694,0.11682452,87830.0,87820.0,0.41287628]
[1767208061746,0.11682452,87830.0,87816.0,0.01144]
[1767208064278,0.12747229,87829.0,87816.0,0.01144]
[1767208064481,0.11682452,87829.0,87816.0,0.01144]
[1767208065626,0.11682452,87829.0,87820.0,0.011159]
[1767208066060,0.01785692,87841.0,87820.0,0.011159]
[1767208066061,0.11682452,87854.0,87830.0,0.11111031]
[1767208066208,0.0002514,87848.0,87839.0,0.11111031]
[1767208066574,0.0002514,87848.0,87840.0,0.01144]
[1767208067583,0.0002514,87848.0,87831.0,0.04103466]
[1767208067584,0.11707592,87848.0,87831.0,0.04103466]
[1767208067740,0.11707592,87848.0,87832.0,0.0114]
[1767208068078,0.11706332,87848.0,87832.0,0.0114]
[1767208069744,0.11706332,87848.0,87838.0,0.41287628]
[1767208070356,0.11706332,87848.0,87832.0,0.12251031]
[1767208071359,0.0001821,87862.0,87849.0,0.11526722]
[1767208071539,0.00088815,87856.0,87850.0,0.12666722]
[1767208071774,0.00088815,87856.0,87850.0,0.0114]
[1767208076148,0.00033915,87856.0,87850.0,0.0114]
[1767208077061,0.11294502,87874.0,87852.0,0.11526722]
[1767208077416,0.11294502,87874.0,87860.0,0.41287628]
[1767208077615,0.11294502,87874.0,87861.0,0.0114]
[1767208078350,0.11294502,87874.0,87861.0,0.01030571]
[1767208079105,0.0114,87883.0,87862.0,0.11526722]
[1767208079106,0.11294502,87880.0,87862.0,0.11526722]
[1767208079343,0.11294502,87880.0,87862.0,0.12782451]
[1767208082780,0.0114,87883.0,87862.0,0.12782451]
[1767208082781,0.11294502,87876.0,87862.0,0.12782451]
[1767208082986,0.11294502,87876.0,87862.0,0.01255729]
[1767208083207,0.11294502,87876.0,87861.0,0.01030571]
[1767208085304,0.0114,87883.0,87857.0,0.11526722]
[1767208085305,0.000549,87861.0,87857.0,0.11526722]
[1767208085515,0.000549,87861.0,87820.0,0.011159]
[1767208085516,0.11349402,87861.0,87858.0,0.01085]
[1767208085718,0.11294502,87866.0,87858.0,0.01085]
[1767208087061,0.0001821,87884.0,87866.0,0.00055]
[1767208087266,0.11294502,87882.0,87866.0,0.01195]
[1767208087485,0.11294502,87882.0,87866.0,0.0114]
[1767208088499,1e-07,87873.0,87868.0,0.11526722]
[1767208088874,1e-07,87873.0,87867.0,0.05395435]
[1767208089277,1e-07,87873.0,87866.0,0.0114]
[1767208093098,1e-07,87873.0,87866.0,0.12666722]
[1767208093698,1e-07,87873.0,87866.0,0.0114]
[1767208095550,1e-07,87873.0,87866.0,0.011219]
[1767208101693,1e-07,87873.0,87866.0,0.01099966]
[1767208104194,0.11757563,87872.0,87866.0,0.01099966]
[1767208105571,1e-07,87873.0,87866.0,0.01099966]
[1767208105775,0.01064115,87872.0,87866.0,0.01099966]
[1767208105974,1e-07,87873.0,87866.0,0.01099966]
[1767208106229,0.01064007,87872.0,87866.0,0.01099966]
[1767208106390,1e-07,87873.0,87866.0,0.01099966]
[1767208106592,0.01064254,87872.0,87866.0,0.01099966]
[1767208106787,1e-07,87873.0,87866.0,0.01099966]
[1767208107008,0.01064228,87872.0,87866.0,0.01099966]
[1767208107205,0.01064425,87871.0,87866.0,0.01099966]
[1767208107440,1e-07,87873.0,87866.0,0.01099966]
[1767208107639,0.01064445,87872.0,87866.0,0.01099966]
[1767208107811,0.01064445,87871.0,87866.0,0.01099966]
[1767208107993,0.11757573,87873.0,87866.0,0.01099966]
[1767208108194,0.12822008,87872.0,87866.0,0.01099966]
[1767208108409,0.11757563,87870.0,87866.0,0.01099966]
[1767208109993,1e-07,87873.0,87866.0,0.01099966]
[1767208110174,0.01064816,87872.0,87866.0,0.01099966]
[1767208110378,0.01064816,87871.0,87866.0,0.01099966]
[1767208110728,1e-07,87873.0,87866.0,0.01099966]
[1767208110729,1e-07,87873.0,87867.0,0.10796719]
[1767208110905,0.0004,87891.0,87872.0,0.10796719]
[1767208110906,0.01075189,87889.0,87872.0,0.10796719]
[1767208111131,0.01075189,87889.0,87877.0,0.03076673]
[1767208111132,0.01064959,87888.0,87877.0,0.03076673]
[1767208111338,0.01064959,87887.0,87877.0,0.03076673]
[1767208111508,0.01064959,87886.0,87877.0,0.03076673]
[1767208111654,0.01085794,87889.0,87877.0,0.03076673]
[1767208111851,0.01064844,87888.0,87877.0,0.03076673]
[1767208112079,0.01064844,87887.0,87878.0,0.02149496]
[1767208112278,0.01064844,87886.0,87876.0,0.03076673]
[1767208112498,0.01137902,87881.0,87873.0,0.0114]
[1767208112671,0.11757563,87881.0,87874.0,0.0114]
[1767208113093,0.11757563,87881.0,87874.0,0.01085]
[1767208113332,0.11757563,87881.0,87870.0,0.41287628]
[1767208113542,0.11757563,87883.0,87869.0,0.0114]
[1767208113754,0.11757563,87879.0,87869.0,0.0114]
[1767208115721,0.11757563,87879.0,87867.0,0.0114]
[1767208116588,0.11757563,87879.0,87862.0,0.04103466]
[1767208116752,0.11757563,87878.0,87863.0,0.0114]
[1767208117173,0.11702663,87878.0,87868.0,0.41245907]
[1767208117372,0.11702663,87878.0,87869.0,0.011152]
[1767208117775,0.0114,87882.0,87870.0,0.10796719]
[1767208118031,0.0114,87882.0,87870.0,0.52042626]
[1767208118180,0.0114,87882.0,87870.0,0.41245907]
[1767208118391,0.12897563,87882.0,87870.0,0.41245907]
[1767208118968,0.11757563,87882.0,87870.0,0.41245907]
[1767208119426,0.11757563,87882.0,87870.0,0.47562082]
[1767208120864,0.11757563,87882.0,87870.0,0.41245907]
[1767208121259,0.11757563,87882.0,87869.0,0.011152]
[1767208122706,0.0114,87884.0,87869.0,0.011152]
[1767208122707,0.11757563,87879.0,87869.0,0.011152]
[1767208123085,0.11757563,87879.0,87869.0,0.010603]
[1767208123315,0.11757563,87888.0,87869.0,0.010603]
[1767208123606,0.12822213,87887.0,87869.0,0.42306207]
[1767208123806,0.12822213,87886.0,87870.0,0.0114]
[1767208124009,0.12822213,87885.0,87870.0,0.0114]
[1767208124157,0.11757563,87883.0,87870.0,0.0114]
[1767208124353,0.11757563,87881.0,87870.0,0.0114]
[1767208125983,0.11757563,87881.0,87870.0,0.42385907]
[1767208128737,0.0114,87884.0,87870.0,0.42385907]
[1767208128953,0.01064654,87883.0,87871.0,0.10796719]
[1767208129150,0.0114,87884.0,87871.0,0.10796719]
[1767208130559,0.00010605,87889.0,87874.0,0.52630383]
[1767208130901,0.00010605,87889.0,87872.0,0.05834639]
[1767208130902,0.01054023,87888.0,87879.0,0.52630383]
[1767208131035,0.00010605,87889.0,87879.0,0.52630383]
[1767208131742,0.00010605,87889.0,87879.0,0.11384476]
[1767208131948,0.00010605,87889.0,87879.0,0.52630383]
[1767208135686,0.00010605,87889.0,87878.0,0.0114]
[1767208135907,0.00010605,87889.0,87879.0,0.41245907]
[1767208136421,0.00035782,87891.0,87880.0,0.11384476]
[1767208136598,2.082e-05,87891.0,87880.0,0.11395081]
[1767208137850,2.082e-05,87891.0,87881.0,0.41245907]
[1767208138058,2.082e-05,87891.0,87882.0,0.11384476]
[1767208142397,0.11363346,87891.0,87883.0,0.0114]
[1767208142733,2.082e-05,87891.0,87883.0,0.0114]
[1767208144725,2.082e-05,87891.0,87884.0,0.11384476]
[1767208145876,2.082e-05,87891.0,87884.0,0.12524476]
[1767208146795,0.00037836,87892.0,87884.0,0.12524476]
[1767208147639,0.00037836,87892.0,87885.0,0.0950269]
[1767208148407,0.00037836,87892.0,87884.0,0.12524476]
[1767208151690,0.00033555,87892.0,87884.0,0.12524476]
[1767208151897,0.0004,87911.0,87892.0,0.11417976]
[1767208152096,0.11361264,87910.0,87895.0,0.82491814]
[1767208152313,0.11361264,87910.0,87896.0,0.09501629]
[1767208153399,0.11361264,87910.0,87895.0,0.41245907]
[1767208158754,0.00035746,87905.0,87895.0,0.41245907]
[1767208162468,4.6e-07,87905.0,87896.0,0.10936209]
[1767208162586,0.0004,87911.0,87896.0,0.10936209]
[1767208162587,4.6e-07,87908.0,87896.0,0.10936209]
[1767208162787,0.0004,87911.0,87909.0,0.10936209]
[1767208163368,0.0004,87911.0,87902.0,0.10936209]
[1767208163812,0.000208,87911.0,87902.0,0.10936209]
[1767208167715,0.000208,87911.0,87901.0,0.47359575]
[1767208167917,0.000208,87911.0,87902.0,0.10068169]
[1767208168853,0.000549,87902.0,87901.0,0.06113668]
[1767208169037,0.00055,87901.0,87892.0,0.0114]
[1767208169226,0.11871668,87901.0,87887.0,0.04103466]
[1767208169551,0.11816668,87901.0,87890.0,0.41245907]
[1767208169691,0.11816668,87901.0,87887.0,0.06343152]
[1767208169897,0.11816668,87901.0,87890.0,0.41245907]
[1767208171350,0.01137708,87896.0,87890.0,0.41191007]
[1767208171663,0.11322176,87890.0,87870.0,0.41245907]
[1767208171886,0.11322176,87888.0,87878.0,0.00010695]
[1767208172063,0.11322176,87888.0,87870.0,0.41245907]
[1767208172210,0.11332773,87888.0,87870.0,0.41245907]
[1767208172653,0.01137941,87878.0,87869.0,0.010603]
[1767208172854,0.000352,87870.0,87869.0,0.010603]
[1767208173206,0.11328828,87874.0,87869.0,0.010603]
[1767208173409,0.0114,87878.0,87869.0,0.010603]
[1767208173811,0.11345975,87877.0,87869.0,0.010603]
[1767208176230,0.17629478,87877.0,87869.0,0.010603]
[1767208177494,0.11396245,87876.0,87869.0,0.010603]
[1767208179953,0.0114,87878.0,87869.0,0.010603]
[1767208186312,0.12674196,87878.0,87869.0,0.010603]
[1767208186547,0.11534196,87878.0,87869.0,0.010603]
[1767208186871,0.0114,87877.0,87869.0,0.010603]
[1767208190066,0.11618283,87873.0,87846.0,0.11215067]
[1767208190306,0.11618283,87861.0,87846.0,0.11215067]
[1767208190509,0.42394307,87860.0,87846.0,0.11215067]
[1767208191022,0.11631739,87859.0,87840.0,0.11287753]
[1767208191525,0.11631739,87858.0,87840.0,0.11323117]
[1767208191882,0.11645041,87849.0,87840.0,0.0010805]
[1767208192084,0.0114,87848.0,87840.0,0.0010805]
[1767208192310,0.12785041,87848.0,87840.0,0.0010805]
[1767208201217,0.01060471,87847.0,87840.0,0.0010805]
[1767208201404,0.05623807,87847.0,87840.0,0.0010805]
[1767208202101,0.01060676,87846.0,87840.0,0.0010805]
[1767208202322,0.05623807,87847.0,87840.0,0.0010805]
[1767208202531,0.0106058,87846.0,87840.0,0.0010805]
[1767208202723,0.05623807,87847.0,87840.0,0.0010805]
[1767208202928,0.01060583,87846.0,87840.0,0.0010805]
[1767208203168,0.05623807,87847.0,87840.0,0.0010805]
[1767208203373,0.01060547,87846.0,87840.0,0.0010805]
[1767208203567,0.11781655,87844.0,87840.0,0.0010805]
[1767208203773,0.01060437,87843.0,87840.0,0.0010805]
[1767208204053,0.01138355,87846.0,87840.0,0.0010805]
[1767208204054,0.01060437,87842.0,87840.0,0.0010805]
[1767208204253,0.0114,87841.0,87840.0,0.0010805]
[1767208204485,0.0114,87841.0,87814.0,0.06349052]
[1767208204486,0.0114,87841.0,87824.0,0.0002049]
[1767208204685,0.41254307,87840.0,87825.0,0.11215067]
[1767208205021,0.01060318,87839.0,87825.0,0.11215067]
[1767208205221,0.41254307,87840.0,87825.0,0.11215067]
[1767208205536,0.01060179,87839.0,87825.0,0.11215067]
[1767208205723,0.11858385,87837.0,87824.0,0.000106]
[1767208207142,0.01060142,87836.0,87824.0,0.000106]
[1767208207464,0.11858385,87837.0,87824.0,0.000106]
[1767208207696,0.01060376,87836.0,87824.0,0.000106]
[1767208207924,0.11858385,87837.0,87824.0,0.000106]
[1767208208137,0.0106053,87836.0,87824.0,0.000106]
[1767208208318,0.13955095,87837.0,87824.0,0.000106]
[1767208208463,0.01060441,87836.0,87824.0,0.000106]
[1767208208665,0.13955095,87837.0,87824.0,0.000106]
[1767208208885,0.01060441,87836.0,87824.0,0.000106]
[1767208209084,0.0106044,87835.0,87825.0,0.11215067]
[1767208209282,0.11858385,87844.0,87836.0,0.00054602]
[1767208209503,0.01144,87843.0,87831.0,0.11215067]
[1767208210199,0.0002325,87845.0,87831.0,0.11215067]
[1767208210403,0.01144,87844.0,87843.0,0.001096]
[1767208210717,0.01144,87844.0,87837.0,0.11215067]
[1767208211282,0.010344,87844.0,87837.0,0.11215067]
[1767208212865,0.0002325,87845.0,87837.0,0.11215067]
[1767208213100,0.01144,87844.0,87838.0,0.11215067]
[1767208214784,0.01734621,87853.0,87841.0,0.11215067]
[1767208214965,0.01144,87851.0,87841.0,0.11215067]
[1767208219230,0.01144,87851.0,87841.0,0.1047343]
[1767208220325,0.01734621,87853.0,87842.0,0.11456938]
[1767208220482,0.00053451,87856.0,87842.0,0.11456938]
[1767208220666,0.01144,87858.0,87847.0,0.11456938]
[1767208220846,0.01144,87858.0,87849.0,0.11456938]
[1767208221203,0.01064922,87857.0,87849.0,0.11456938]
[1767208221426,0.0001754,87863.0,87849.0,0.11456938]
[1767208221626,0.0001754,87863.0,87851.0,0.11456938]
[1767208222941,0.00052882,87863.0,87851.0,0.11456938]
[1767208236607,0.00052882,87863.0,87853.0,0.52709572]
[1767208237901,0.00052882,87863.0,87853.0,0.52654672]
[1767208239123,0.00052882,87863.0,87853.0,0.11402038]
[1767208239333,0.00052882,87863.0,87853.0,0.16781905]
[1767208239580,0.00052882,87863.0,87853.0,0.11402038]
[1767208241402,0.00052882,87863.0,87829.0,0.11456938]
[1767208241403,0.13276849,87860.0,87829.0,0.11456938]
[1767208241528,0.13201792,87859.0,87838.0,0.11456938]
[1767208241740,0.12138675,87857.0,87840.0,0.41252634]
[1767208242384,0.00052882,87863.0,87858.0,0.11456938]
[1767208242793,0.01144,87871.0,87851.0,0.01144]
[1767208242794,0.12138675,87880.0,87861.0,0.11456938]
[1767208242947,0.01144,87874.0,87865.0,0.41252634]
[1767208243146,0.01063384,87873.0,87861.0,0.11456938]
[1767208243352,0.01144,87874.0,87861.0,0.11456938]
[1767208243548,0.01063464,87873.0,87861.0,0.11456938]
[1767208243805,0.01144,87874.0,87863.0,0.41252634]
[1767208244572,0.01144,87874.0,87861.0,0.11456938]
[1767208245009,0.00010595,87875.0,87865.0,0.11456938]
[1767208245871,0.00010595,87875.0,87866.0,0.11456938]
[1767208246988,9.5e-07,87875.0,87866.0,0.11456938]
[1767208249548,9.5e-07,87878.0,87866.0,0.11456938]
[1767208249737,0.02965213,87885.0,87869.0,0.11456938]
[1767208249877,0.02965213,87885.0,87866.0,0.00010595]
[1767208249878,0.01063304,87884.0,87875.0,0.53748015]
[1767208250082,0.02965213,87885.0,87875.0,0.53748015]
[1767208250302,0.01063305,87884.0,87875.0,0.53748015]
[1767208250521,0.02965213,87885.0,87875.0,0.53748015]
[1767208250726,0.01063295,87884.0,87875.0,0.12429881]
[1767208250899,0.02965213,87885.0,87875.0,0.53682515]
[1767208251235,0.01063294,87884.0,87875.0,0.53682515]
[1767208251399,0.02965213,87885.0,87875.0,0.53682515]
[1767208258743,0.01821213,87885.0,87875.0,0.53682515]
[1767208258977,0.01144,87884.0,87876.0,0.12495381]
[1767208259299,0.01144,87883.0,87876.0,0.12495381]
[1767208259446,0.0003656,87885.0,87884.0,0.000549]
[1767208259789,0.01784605,87894.0,87876.0,0.12495381]
[1767208259943,0.01144,87899.0,87894.0,0.000184]
[1767208260147,0.01144,87898.0,87894.0,0.000184]
[1767208260348,0.01144,87898.0,87889.0,0.41252634]
[1767208260976,0.010891,87898.0,87889.0,0.41252634]
[1767208261153,0.12190312,87906.0,87889.0,0.46627435]
[1767208261352,0.13334312,87905.0,87889.0,0.46627435]
[1767208266011,0.13334312,87905.0,87890.0,0.41252634]
[1767208266216,0.13334312,87905.0,87890.0,0.41197734]
[1767208271051,0.00010601,87906.0,87895.0,0.53748015]
[1767208271238,0.0114,87904.0,87896.0,0.41252634]
[1767208271439,0.0114,87904.0,87890.0,0.53748015]
[1767208271648,0.0114,87904.0,87891.0,0.12495381]
[1767208273238,0.0114,87904.0,87895.0,0.12495381]
[1767208275194,0.0003656,87907.0,87896.0,0.12495381]
[1767208275403,0.0003244,87911.0,87898.0,0.12495381]
[1767208275647,0.0003244,87911.0,87901.0,0.12495381]
[1767208275853,0.0098464,87912.0,87903.0,0.12495381]
[1767208279713,0.01784064,87917.0,87913.0,0.11958778]
[1767208279933,0.01062384,87916.0,87913.0,0.11926378]
[1767208280144,0.0114,87920.0,87913.0,0.11926378]
[1767208280346,0.01062286,87919.0,87913.0,0.11926378]
[1767208280549,0.01062286,87918.0,87913.0,0.11926378]
[1767208280756,0.01062286,87917.0,87913.0,0.11926378]
[1767208280957,0.01062286,87916.0,87913.0,0.11926378]
[1767208281158,0.0114,87920.0,87913.0,0.11926378]
[1767208281410,0.01062314,87919.0,87913.0,0.11926378]
[1767208281585,0.01062314,87918.0,87913.0,0.11909314]
[1767208282000,0.01062314,87917.0,87913.0,0.11909314]
[1767208282201,0.0114,87920.0,87887.0,0.12173415]
[1767208282202,0.01137501,87912.0,87887.0,0.12173415]
[1767208282408,0.12200551,87909.0,87893.0,0.0114]
[1767208282632,0.12200551,87907.0,87893.0,0.0114]
[1767208286885,0.02277514,87911.0,87885.0,0.00967944]
[1767208286886,0.12200551,87902.0,87885.0,0.00967944]
[1767208287097,0.12200551,87902.0,87880.0,0.41252634]
[1767208287098,0.12200551,87899.0,87880.0,0.41252634]
[1767208287301,0.12200551,87897.0,87880.0,0.41252634]
[1767208287739,0.06484252,87897.0,87880.0,0.41252634]
[1767208287940,0.12200551,87896.0,87880.0,0.41252634]
[1767208288362,0.12200551,87894.0,87880.0,0.41252634]
[1767208289273,0.0114,87893.0,87880.0,0.41252634]
[1767208289477,0.0114,87893.0,87880.0,0.47118961]
[1767208289716,0.0114,87893.0,87881.0,0.12173415]
[1767208290640,0.41252634,87891.0,87881.0,0.12173415]
[1767208290866,0.0114,87893.0,87879.0,0.0114]
[1767208291067,0.0114,87893.0,87879.0,0.13313415]
[1767208291494,0.0114,87893.0,87880.0,0.41252634]
[1767208294215,0.0114,87893.0,87876.0,0.0114]
[1767208294216,0.12200551,87889.0,87876.0,0.0114]
[1767208297344,0.12200551,87889.0,87872.0,0.12173415]